fUSD/lending_fUSD_20260624
["ID","MTS","AMOUNT","RATE_DAILY","PERIOD"]
[426313264,1782280232000,-500.0,0.00013873,2]
[426313265,1782280232000,-166.66,0.00013936,2]
[426313259,1782280232000,-164.55,0.00012737,2]
[426313262,1782280232000,-150.0,0.00013795,2]
[426313260,1782280232000,-233.52,0.00013738,2]
[426313257,1782280232000,-433.0,0.00010805,2]
[426313258,1782280232000,-187.0,0.00011885,2]
[426313273,1782280232000,-1256.58,0.00014776,2]
[426313263,1782280232000,-200.0,0.00013795,2]
[426313272,1782280232000,-2008.4483,0.000147,2]
[426313275,1782280232000,-33326.4581,0.000148,2]
[426313269,1782280232000,-1256.58,0.00014416,2]
[426313271,1782280232000,-166.66,0.00014523,2]
[426313274,1782280232000,-200.0,0.00014795,2]
[426313276,1782280232000,-2000.0,0.000148,2]
[426313278,1782280232000,-501.32000181,0.00014849,2]
[426313261,1782280232000,-199.5,0.00013742,2]
[426313277,1782280232000,-166.66,0.00014816,2]
[426313279,1782280232000,-272.16529691,0.000149,7]
[426313280,1782280232000,-1025.71,0.00014976,2]
[426313281,1782280232000,-180.6,0.00015079,2]
[426313284,1782280232000,-166.66,0.00015403,2]
[426313282,1782280232000,-166.66,0.00015109,2]
[426313283,1782280232000,-1256.58,0.00015136,2]
[426313270,1782280232000,-188.69,0.00014458,2]
[426313256,1782280232000,-255.0,9.823e-05,2]
[426313249,1782280232000,-179.52253363,8.931e-05,2]
[426313255,1782280232000,-500.0,9.61e-05,2]
[426313230,1782280232000,-500.0,8.93e-05,2]
[426313285,1782280232000,-544.43,0.00015424,2]
[426313228,1782280232000,-500.0,8.93e-05,2]
[426313229,1782280232000,-500.0,8.93e-05,2]
[426313227,1782280232000,-500.0,8.93e-05,2]
[426313232,1782280232000,-192.66413238,8.93e-05,2]
[426313231,1782280232000,-500.0,8.93e-05,2]
[426313233,1782280232000,-500.0,8.93e-05,2]
[426313235,1782280232000,-500.0,8.93e-05,2]
[426313236,1782280232000,-500.0,8.93e-05,2]
[426313234,1782280232000,-500.0,8.93e-05,2]
[426313238,1782280232000,-500.0,8.93e-05,2]
[426313239,1782280232000,-500.0,8.93e-05,2]
[426313237,1782280232000,-500.0,8.93e-05,2]
[426313240,1782280232000,-500.0,8.93e-05,2]
[426313242,1782280232000,-500.0,8.93e-05,2]
[426313241,1782280232000,-500.0,8.93e-05,2]
[426313244,1782280232000,-385.98766412,8.93e-05,2]
[426313243,1782280232000,-500.0,8.93e-05,2]
[426313246,1782280232000,-500.0,8.93e-05,2]
[426313245,1782280232000,-500.0,8.93e-05,2]
[426313248,1782280232000,-150.0,8.93e-05,2]
[426313247,1782280232000,-392.60342668,8.93e-05,2]
[426313250,1782280232000,-160.0,8.937e-05,2]
[426313251,1782280232000,-160.0,8.937e-05,2]
[426313252,1782280232000,-445.54265778,9.204e-05,2]
[426313253,1782280232000,-255.17375,9.61e-05,2]
[426313254,1782280232000,-500.0,9.61e-05,2]
[426313286,1782280232000,-1256.58,0.00015497,2]
[426313345,1782280232000,-1036.33020602,0.00016438,2]
[426313288,1782280232000,-500.0,0.00015698,2]
[426313322,1782280232000,-500.0,0.00016438,2]
[426313320,1782280232000,-500.0,0.00016438,2]
[426313321,1782280232000,-500.0,0.00016438,2]
[426313325,1782280232000,-500.0,0.00016438,2]
[426313324,1782280232000,-500.0,0.00016438,2]
[426313327,1782280232000,-450.0,0.00016438,2]
[426313323,1782280232000,-500.0,0.00016438,2]
[426313326,1782280232000,-500.0,0.00016438,2]
[426313328,1782280232000,-500.0,0.00016438,2]
[426313330,1782280232000,-500.0,0.00016438,2]
[426313329,1782280232000,-500.0,0.00016438,2]
[426313334,1782280232000,-1036.33020602,0.00016438,2]
[426313333,1782280232000,-1036.33020602,0.00016438,2]
[426313331,1782280232000,-500.0,0.00016438,2]
[426313339,1782280232000,-1036.33020602,0.00016438,2]
[426313340,1782280232000,-1036.33020602,0.00016438,2]
[426313338,1782280232000,-1036.33020602,0.00016438,2]
[426313335,1782280232000,-1036.33020602,0.00016438,2]
[426313336,1782280232000,-1036.33020602,0.00016438,2]
[426313337,1782280232000,-1036.33020602,0.00016438,2]
[426313342,1782280232000,-1036.33020602,0.00016438,2]
[426313341,1782280232000,-1036.33020602,0.00016438,2]
[426313343,1782280232000,-1036.33020602,0.00016438,2]
[426313346,1782280232000,-1036.33020602,0.00016438,2]
[426313344,1782280232000,-1036.33020602,0.00016438,2]
[426313347,1782280232000,-1036.33020602,0.00016438,2]
[426313287,1782280232000,-1500.0,0.0001558,2]
[426313319,1782280232000,-500.0,0.00016438,2]
[426313317,1782280232000,-500.0,0.00016438,2]
[426313332,1782280232000,-500.0,0.00016438,2]
[426313314,1782280232000,-500.0,0.00016438,2]
[426313318,1782280232000,-500.0,0.00016438,2]
[426313290,1782280232000,-500.0,0.00015698,2]
[426313291,1782280232000,-500.0,0.00015698,2]
[426313293,1782280232000,-500.0,0.00015785,2]
[426313292,1782280232000,-499.45975876,0.00015774,2]
[426313294,1782280232000,-1256.58,0.00015857,2]
[426313295,1782280232000,-3562.0,0.00015941,2]
[426313297,1782280232000,-383.0,0.00015941,2]
[426313296,1782280232000,-1277.0,0.00015941,2]
[426313299,1782280232000,-1229.0,0.00015941,2]
[426313301,1782280232000,-300.0,0.00016,2]
[426313298,1782280232000,-1361.0,0.00015941,2]
[426313303,1782280232000,-1555.5,0.00016128,2]
[426313300,1782280232000,-935.0,0.00015941,2]
[426313289,1782280232000,-500.0,0.00015698,2]
[426313308,1782280232000,-500.0,0.00016438,2]
[426313302,1782280232000,-408.24794535,0.00016092,7]
[426313310,1782280232000,-500.0,0.00016438,2]
[426313313,1782280232000,-500.0,0.00016438,2]
[426313312,1782280232000,-500.0,0.00016438,2]
[426313315,1782280232000,-500.0,0.00016438,2]
[426313316,1782280232000,-500.0,0.00016438,2]
[426313311,1782280232000,-500.0,0.00016438,2]
[426313305,1782280232000,-500.0,0.00016438,2]
[426313304,1782280232000,-608.1,0.00016438,2]
[426313309,1782280232000,-500.0,0.00016438,2]
[426313307,1782280232000,-500.0,0.00016438,2]
[426313306,1782280232000,-500.0,0.00016438,2]
[426313391,1782280233000,-1044.96629107,0.00016438,2]
[426313388,1782280233000,-1044.96629107,0.00016438,2]
[426313389,1782280233000,-1044.96629107,0.00016438,2]
[426313382,1782280233000,-1044.96629107,0.00016438,2]
[426313384,1782280233000,-1044.96629107,0.00016438,2]
[426313385,1782280233000,-1044.96629107,0.00016438,2]
[426313386,1782280233000,-1044.96629107,0.00016438,2]
[426313379,1782280233000,-1044.96629107,0.00016438,2]
[426313383,1782280233000,-1044.96629107,0.00016438,2]
[426313380,1782280233000,-1044.96629107,0.00016438,2]
[426313396,1782280233000,-193.42,0.00016578,2]
[426313387,1782280233000,-1044.96629107,0.00016438,2]
[426313395,1782280233000,-1000.0,0.00016578,2]
[426313398,1782280233000,-2500.0,0.000167,2]
[426313394,1782280233000,-1044.96629107,0.00016438,2]
[426313392,1782280233000,-1044.96629107,0.00016438,2]
[426313390,1782280233000,-1044.96629107,0.00016438,2]
[426313397,1782280233000,-1613.0535,0.00016676,2]
[426313399,1782280233000,-171.43,0.00016712,2]
[426313400,1782280233000,-17294.57,0.0001679,2]
[426313402,1782280233000,-245783.2459,0.000168,2]
[426313403,1782280233000,-153.24300422,0.00016822,2]
[426313401,1782280233000,-500.0,0.00016799,2]
[426313404,1782280233000,-180.6,0.00016964,2]
[426313405,1782280233000,-5008.79215762,0.00017,2]
[426313381,1782280233000,-1044.96629107,0.00016438,2]
[426313393,1782280233000,-1044.96629107,0.00016438,2]
[426313378,1782280233000,-1044.96629107,0.00016438,2]
[426313407,1782280233000,-5008.79215762,0.000172,2]
[426313376,1782280233000,-1036.33020602,0.00016438,2]
[426313348,1782280233000,-1036.33020602,0.00016438,2]
[426313351,1782280233000,-1036.33020602,0.00016438,2]
[426313349,1782280233000,-1036.33020602,0.00016438,2]
[426313350,1782280233000,-1036.33020602,0.00016438,2]
[426313354,1782280233000,-1036.33020602,0.00016438,2]
[426313355,1782280233000,-1036.33020602,0.00016438,2]
[426313358,1782280233000,-1036.33020602,0.00016438,2]
[426313353,1782280233000,-1036.33020602,0.00016438,2]
[426313357,1782280233000,-1036.33020602,0.00016438,2]
[426313356,1782280233000,-1036.33020602,0.00016438,2]
[426313360,1782280233000,-1036.33020602,0.00016438,2]
[426313359,1782280233000,-1036.33020602,0.00016438,2]
[426313361,1782280233000,-1036.33020602,0.00016438,2]
[426313364,1782280233000,-1036.33020602,0.00016438,2]
[426313365,1782280233000,-1036.33020602,0.00016438,2]
[426313362,1782280233000,-1036.33020602,0.00016438,2]
[426313363,1782280233000,-1036.33020602,0.00016438,2]
[426313368,1782280233000,-1036.33020602,0.00016438,2]
[426313366,1782280233000,-1036.33020602,0.00016438,2]
[426313371,1782280233000,-1036.33020602,0.00016438,2]
[426313369,1782280233000,-1036.33020602,0.00016438,2]
[426313367,1782280233000,-1036.33020602,0.00016438,2]
[426313370,1782280233000,-1036.33020602,0.00016438,2]
[426313373,1782280233000,-1036.33020602,0.00016438,2]
[426313372,1782280233000,-1036.33020602,0.00016438,2]
[426313374,1782280233000,-1036.33020602,0.00016438,2]
[426313375,1782280233000,-1036.33020602,0.00016438,2]
[426313377,1782280233000,-1044.96629107,0.00016438,2]
[426313409,1782280233000,-1000.0,0.00017394,2]
[426313352,1782280233000,-1036.33020602,0.00016438,2]
[426313406,1782280233000,-158.64,0.00017139,2]
[426313441,1782280233000,-162.64887469,0.00018868,2]
[426313444,1782280233000,-200.0,0.00018868,2]
[426313446,1782280233000,-1865.36488656,0.00018868,2]
[426313445,1782280233000,-151.0,0.00018868,2]
[426313443,1782280233000,-151.0,0.00018868,2]
[426313448,1782280233000,-151.0,0.00018868,2]
[426313447,1782280233000,-155.66481191,0.00018868,2]
[426313450,1782280233000,-174.61919141,0.00018868,2]
[426313449,1782280233000,-151.0,0.00018868,2]
[426313451,1782280233000,-151.0,0.00018868,2]
[426313454,1782280233000,-520.5006462,0.00018868,2]
[426313456,1782280233000,-152.0,0.00018868,2]
[426313457,1782280233000,-338.07658874,0.00018868,2]
[426313453,1782280233000,-8565.75555911,0.00018868,2]
[426313452,1782280233000,-157.66579751,0.00018868,2]
[426313455,1782280233000,-151.0,0.00018868,2]
[426313459,1782280233000,-187.78006524,0.00018868,2]
[426313458,1782280233000,-194.72792766,0.00018868,2]
[426313461,1782280233000,-500.0,0.00018868,2]
[426313460,1782280233000,-151.0,0.00018868,2]
[426313462,1782280233000,-209.40437686,0.00018868,2]
[426313463,1782280233000,-151.0,0.00018868,2]
[426313465,1782280233000,-209.40437686,0.00018868,2]
[426313468,1782280233000,-151.0,0.00018868,2]
[426313464,1782280233000,-152.0,0.00018868,2]
[426313467,1782280233000,-151.0,0.00018868,2]
[426313466,1782280233000,-500.0,0.00018868,2]
[426313442,1782280233000,-681.12826815,0.00018868,2]
[426313440,1782280233000,-209.40437688,0.00018868,2]
[426313410,1782280233000,-1033.31351895,0.00017394,2]
[426313437,1782280233000,-557.5788265,0.00018868,2]
[426313408,1782280233000,-1672.7364795,0.00017224,2]
[426313411,1782280233000,-5008.79215762,0.000174,2]
[426313412,1782280233000,-5008.79215762,0.000175,2]
[426313413,1782280233000,-8262.8615261,0.00017672,2]
[426313415,1782280233000,-8337.97,0.00017728,2]
[426313414,1782280233000,-5008.79215762,0.000177,2]
[426313416,1782280233000,-3305.14461044,0.00017772,2]
[426313419,1782280233000,-10000.0,0.00017876,2]
[426313417,1782280233000,-1734.62772924,0.00017772,2]
[426313420,1782280233000,-5008.79215762,0.000179,2]
[426313421,1782280233000,-350.0,0.00018,2]
[426313418,1782280233000,-500.0,0.00017875,2]
[426313422,1782280233000,-5008.79215762,0.000181,2]
[426313423,1782280233000,-294.73176823,0.0001821,2]
[426313439,1782280233000,-151.0,0.00018868,2]
[426313425,1782280233000,-1798.80895522,0.0001832,2]
[426313424,1782280233000,-5008.79215762,0.000183,2]
[426313435,1782280233000,-249.0,0.00018742,2]
[426313436,1782280233000,-180.6,0.00018849,2]
[426313433,1782280233000,-5008.79215762,0.000186,2]
[426313431,1782280233000,-608.1,0.0001841,2]
[426313434,1782280233000,-153.24300418,0.00018638,2]
[426313438,1782280233000,-287.45234914,0.00018868,2]
[426313429,1782280233000,-154.40572645,0.000184,2]
[426313427,1782280233000,-5008.79215762,0.000184,2]
[426313430,1782280233000,-154.40572645,0.000184,2]
[426313428,1782280233000,-154.40572647,0.000184,2]
[426313426,1782280233000,-17294.57,0.0001839,2]
[426313432,1782280233000,-505.85568272,0.00018586,2]
[426313506,1782280234000,-151.0,0.00018868,2]
[426313507,1782280234000,-152.0,0.00018868,2]
[426313503,1782280234000,-500.0,0.00018868,2]
[426313504,1782280234000,-500.0,0.00018868,2]
[426313505,1782280234000,-151.0,0.00018868,2]
[426313495,1782280234000,-151.0,0.00018868,2]
[426313502,1782280234000,-152.0,0.00018868,2]
[426313496,1782280234000,-151.0,0.00018868,2]
[426313497,1782280234000,-152.0,0.00018868,2]
[426313509,1782280234000,-500.0,0.00018868,2]
[426313501,1782280234000,-151.0,0.00018868,2]
[426313508,1782280234000,-500.0,0.00018868,2]
[426313518,1782280234000,-151.0,0.00018868,2]
[426313510,1782280234000,-151.0,0.00018868,2]
[426313511,1782280234000,-152.0,0.00018868,2]
[426313513,1782280234000,-151.0,0.00018868,2]
[426313514,1782280234000,-500.0,0.00018868,2]
[426313516,1782280234000,-152.0,0.00018868,2]
[426313500,1782280234000,-151.0,0.00018868,2]
[426313515,1782280234000,-151.0,0.00018868,2]
[426313517,1782280234000,-500.0,0.00018868,2]
[426313521,1782280234000,-500.0,0.00018868,2]
[426313519,1782280234000,-500.0,0.00018868,2]
[426313520,1782280234000,-151.0,0.00018868,2]
[426313512,1782280234000,-500.0,0.00018868,2]
[426313498,1782280234000,-500.0,0.00018868,2]
[426313488,1782280234000,-500.0,0.00018868,2]
[426313493,1782280234000,-500.0,0.00018868,2]
[426313469,1782280234000,-152.0,0.00018868,2]
[426313474,1782280234000,-151.0,0.00018868,2]
[426313475,1782280234000,-151.0,0.00018868,2]
[426313471,1782280234000,-151.0,0.00018868,2]
[426313472,1782280234000,-500.0,0.00018868,2]
[426313470,1782280234000,-500.0,0.00018868,2]
[426313473,1782280234000,-646.65982734,0.00018868,2]
[426313481,1782280234000,-151.0,0.00018868,2]
[426313480,1782280234000,-578.20924308,0.00018868,2]
[426313479,1782280234000,-151.0,0.00018868,2]
[426313477,1782280234000,-152.0,0.00018868,2]
[426313494,1782280234000,-500.0,0.00018868,2]
[426313476,1782280234000,-500.0,0.00018868,2]
[426313482,1782280234000,-500.0,0.00018868,2]
[426313484,1782280234000,-500.0,0.00018868,2]
[426313487,1782280234000,-500.0,0.00018868,2]
[426313485,1782280234000,-151.0,0.00018868,2]
[426313483,1782280234000,-152.0,0.00018868,2]
[426313486,1782280234000,-151.0,0.00018868,2]
[426313523,1782280234000,-151.0,0.00018868,2]
[426313489,1782280234000,-152.0,0.00018868,2]
[426313490,1782280234000,-151.0,0.00018868,2]
[426313491,1782280234000,-500.0,0.00018868,2]
[426313492,1782280234000,-151.0,0.00018868,2]
[426313478,1782280234000,-500.0,0.00018868,2]
[426313522,1782280234000,-152.0,0.00018868,2]
[426313499,1782280234000,-500.0,0.00018868,2]
[426313524,1782280234000,-500.0,0.00018868,2]
[426313555,1782280234000,-233.52,0.00019234,2]
[426313554,1782280234000,-151.0,0.00019198,2]
[426313558,1782280234000,-151.0,0.00019308,2]
[426313557,1782280234000,-151.0,0.00019253,2]
[426313556,1782280234000,-151.0,0.00019253,2]
[426313561,1782280234000,-151.0,0.00019363,2]
[426313562,1782280234000,-151.0,0.00019363,2]
[426313563,1782280234000,-287.45234914,0.00019416,2]
[426313565,1782280234000,-162.64887469,0.00019416,2]
[426313560,1782280234000,-217.8403167,0.00019351,3]
[426313564,1782280234000,-151.0,0.00019416,2]
[426313567,1782280234000,-200.0,0.00019416,2]
[426313566,1782280234000,-681.12826815,0.00019416,2]
[426313569,1782280234000,-181.08010149,0.00019416,2]
[426313568,1782280234000,-1934.38338736,0.00019416,2]
[426313571,1782280234000,-338.07658874,0.00019416,2]
[426313570,1782280234000,-986.41230639,0.00019416,2]
[426313572,1782280234000,-194.72792766,0.00019416,2]
[426313573,1782280234000,-151.0,0.00019416,2]
[426313574,1782280234000,-151.0,0.00019418,2]
[426313576,1782280234000,-151.0,0.00019473,2]
[426313575,1782280234000,-151.0,0.00019418,2]
[426313577,1782280234000,-151.0,0.00019473,2]
[426313525,1782280234000,-151.0,0.00018868,2]
[426313578,1782280234000,-687.63,0.00019474,2]
[426313553,1782280234000,-151.0,0.00019198,2]
[426313552,1782280234000,-151.0,0.00019143,2]
[426313559,1782280234000,-151.0,0.00019308,2]
[426313548,1782280234000,-151.0,0.00019088,2]
[426313527,1782280234000,-151.0,0.00018868,2]
[426313526,1782280234000,-151.0,0.00018868,2]
[426313550,1782280234000,-681.12826815,0.00019142,2]
[426313528,1782280234000,-152.0,0.00018868,2]
[426313530,1782280234000,-151.0,0.00018868,2]
[426313529,1782280234000,-500.0,0.00018868,2]
[426313532,1782280234000,-152.0,0.00018868,2]
[426313531,1782280234000,-151.0,0.00018868,2]
[426313534,1782280234000,-151.0,0.00018868,2]
[426313536,1782280234000,-151.0,0.00018923,2]
[426313537,1782280234000,-151.0,0.00018923,2]
[426313539,1782280234000,-1277.0,0.00018941,2]
[426313535,1782280234000,-500.0,0.00018868,2]
[426313533,1782280234000,-500.0,0.00018868,2]
[426313547,1782280234000,-151.0,0.00019033,2]
[426313541,1782280234000,-1361.0,0.00018941,2]
[426313538,1782280234000,-3562.0,0.00018941,2]
[426313540,1782280234000,-383.0,0.00018941,2]
[426313544,1782280234000,-151.0,0.00018978,2]
[426313546,1782280234000,-151.0,0.00019033,2]
[426313543,1782280234000,-935.0,0.00018941,2]
[426313545,1782280234000,-151.0,0.00018978,2]
[426313542,1782280234000,-1229.0,0.00018941,2]
[426313549,1782280234000,-151.0,0.00019088,2]
[426313551,1782280234000,-151.0,0.00019143,2]
[426313620,1782280235000,-608.1,0.00020381,2]
[426313621,1782280235000,-179.10384967,0.000204,2]
[426313617,1782280235000,-203.76735212,0.000202,2]
[426313618,1782280235000,-681.12826815,0.00020238,2]
[426313614,1782280235000,-179.10384967,0.000202,2]
[426313612,1782280235000,-278.0,0.0002,2]
[426313610,1782280235000,-201.0,0.0002,2]
[426313616,1782280235000,-1675.58435215,0.000202,2]
[426313613,1782280235000,-172.6134389,0.00020125,3]
[426313615,1782280235000,-213.99200401,0.000202,2]
[426313619,1782280235000,-789.47036525,0.00020274,2]
[426313611,1782280235000,-977.0,0.0002,2]
[426313623,1782280235000,-153.24300418,0.00020453,2]
[426313633,1782280235000,-2435.34,0.00020548,2]
[426313629,1782280235000,-194.72792766,0.00020512,2]
[426313624,1782280235000,-287.45234914,0.00020512,2]
[426313627,1782280235000,-200.0,0.00020512,2]
[426313625,1782280235000,-151.0,0.00020512,2]
[426313628,1782280235000,-2080.17592889,0.00020512,2]
[426313622,1782280235000,-1675.58435215,0.000204,2]
[426313631,1782280235000,-209.40437684,0.00020512,2]
[426313634,1782280235000,-11115.07,0.00020548,2]
[426313632,1782280235000,-151.0,0.00020512,2]
[426313636,1782280235000,-150.0,0.0002058,2]
[426313608,1782280235000,-1793.0,0.0002,2]
[426313635,1782280235000,-150.0,0.0002058,2]
[426313626,1782280235000,-681.12826815,0.00020512,2]
[426313609,1782280235000,-226.0,0.0002,2]
[426313583,1782280235000,-681.12826815,0.0001969,2]
[426313606,1782280235000,-155.0,0.0002,2]
[426313639,1782280235000,-179.10384967,0.000206,2]
[426313579,1782280235000,-151.0,0.00019528,2]
[426313580,1782280235000,-151.0,0.00019528,2]
[426313581,1782280235000,-151.0,0.00019583,2]
[426313582,1782280235000,-151.0,0.00019583,2]
[426313584,1782280235000,-195.2268778,0.00019738,3]
[426313585,1782280235000,-287.45234914,0.00019964,2]
[426313586,1782280235000,-151.0,0.00019964,2]
[426313587,1782280235000,-681.12826815,0.00019964,2]
[426313591,1782280235000,-338.07658874,0.00019964,2]
[426313590,1782280235000,-187.78006524,0.00019964,2]
[426313589,1782280235000,-2005.9555727,0.00019964,2]
[426313588,1782280235000,-200.0,0.00019964,2]
[426313592,1782280235000,-201.93286098,0.00019964,2]
[426313596,1782280235000,-268.0,0.0002,2]
[426313595,1782280235000,-213.99200401,0.0002,2]
[426313593,1782280235000,-151.0,0.00019964,2]
[426313594,1782280235000,-179.10384967,0.0002,2]
[426313598,1782280235000,-1278.0,0.0002,2]
[426313597,1782280235000,-1675.58435215,0.0002,2]
[426313604,1782280235000,-282.0,0.0002,2]
[426313600,1782280235000,-556.0,0.0002,2]
[426313601,1782280235000,-156.0,0.0002,2]
[426313603,1782280235000,-400.0,0.0002,2]
[426313599,1782280235000,-155.0,0.0002,2]
[426313602,1782280235000,-203.76735212,0.0002,2]
[426313605,1782280235000,-388.0,0.0002,2]
[426313607,1782280235000,-1202.0,0.0002,2]
[426313641,1782280235000,-785.0,0.00020606,2]
[426313630,1782280235000,-338.07658874,0.00020512,2]
[426313640,1782280235000,-1675.58435215,0.000206,2]
[426313674,1782280235000,-2154.60159533,0.000216,2]
[426313670,1782280235000,-890.2809056,0.000212,2]
[426313673,1782280235000,-1000.0,0.00021596,2]
[426313671,1782280235000,-681.12826815,0.00021334,2]
[426313678,1782280235000,-287.45234914,0.00021608,2]
[426313679,1782280235000,-167.30586087,0.00021608,2]
[426313681,1782280235000,-2236.95670847,0.00021608,2]
[426313677,1782280235000,-599.60298507,0.00021607,2]
[426313680,1782280235000,-200.0,0.00021608,2]
[426313683,1782280235000,-681.12826815,0.00021608,2]
[426313684,1782280235000,-338.07658874,0.00021608,2]
[426313685,1782280235000,-225.18697532,0.00021608,2]
[426313682,1782280235000,-209.40437684,0.00021608,2]
[426313686,1782280235000,-151.0,0.00021608,2]
[426313687,1782280235000,-188.69,0.00021687,2]
[426313689,1782280235000,-500.0,0.000217,3]
[426313688,1782280235000,-500.0,0.000217,3]
[426313691,1782280235000,-500.0,0.00021705,2]
[426313690,1782280235000,-500.0,0.000217,3]
[426313692,1782280235000,-430.05900287,0.00021705,2]
[426313694,1782280235000,-890.2809056,0.000219,2]
[426313693,1782280235000,-681.12826815,0.00021882,2]
[426313695,1782280235000,-150.0,0.000219,7]
[426313696,1782280235000,-5000.0,0.00021918,2]
[426313697,1782280235000,-161.14,0.00021918,2]
[426313698,1782280235000,-3562.0,0.00021941,2]
[426313638,1782280235000,-150.0,0.0002058,2]
[426313672,1782280235000,-890.2809056,0.000214,2]
[426313676,1782280235000,-670.58624095,0.00021607,2]
[426313637,1782280235000,-150.0,0.0002058,2]
[426313667,1782280235000,-338.07658874,0.0002106,2]
[426313675,1782280235000,-890.2809056,0.000216,2]
[426313642,1782280235000,-666.0,0.00020653,5]
[426313643,1782280235000,-200.0,0.00020716,2]
[426313644,1782280235000,-180.6,0.00020734,2]
[426313645,1782280235000,-681.12826815,0.00020786,2]
[426313646,1782280235000,-179.10384967,0.000208,2]
[426313647,1782280235000,-1675.58435215,0.000208,2]
[426313650,1782280235000,-1278.0,0.00021,2]
[426313652,1782280235000,-170.0,0.00021,2]
[426313653,1782280235000,-282.0,0.00021,2]
[426313651,1782280235000,-556.0,0.00021,2]
[426313648,1782280235000,-268.0,0.00021,2]
[426313655,1782280235000,-1202.0,0.00021,2]
[426313649,1782280235000,-890.2809056,0.00021,2]
[426313654,1782280235000,-388.0,0.00021,2]
[426313669,1782280235000,-151.0,0.0002106,2]
[426313668,1782280235000,-217.15233878,0.0002106,2]
[426313656,1782280235000,-1793.0,0.00021,2]
[426313666,1782280235000,-201.93286098,0.0002106,2]
[426313659,1782280235000,-977.0,0.00021,2]
[426313660,1782280235000,-278.0,0.00021,2]
[426313665,1782280235000,-2157.14243826,0.0002106,2]
[426313658,1782280235000,-201.0,0.00021,2]
[426313661,1782280235000,-287.45234914,0.0002106,2]
[426313664,1782280235000,-681.12826815,0.0002106,2]
[426313663,1782280235000,-200.0,0.0002106,2]
[426313657,1782280235000,-226.0,0.00021,2]
[426313662,1782280235000,-151.0,0.0002106,2]
[426313709,1782280236000,-388.0,0.00022,2]
[426313700,1782280236000,-383.0,0.00021941,2]
[426313699,1782280236000,-1277.0,0.00021941,2]
[426313701,1782280236000,-1361.0,0.00021941,2]
[426313703,1782280236000,-935.0,0.00021941,2]
[426313702,1782280236000,-1229.0,0.00021941,2]
[426313705,1782280236000,-1278.0,0.00022,2]
[426313704,1782280236000,-268.0,0.00022,2]
[426313714,1782280236000,-226.0,0.00022,2]
[426313706,1782280236000,-556.0,0.00022,2]
[426313710,1782280236000,-1209.0,0.00022,2]
[426313708,1782280236000,-282.0,0.00022,2]
[426313712,1782280236000,-1793.0,0.00022,2]
[426313711,1782280236000,-1202.0,0.00022,2]
[426313713,1782280236000,-2000.0,0.00022,2]
[426313715,1782280236000,-201.0,0.00022,2]
[426313716,1782280236000,-977.0,0.00022,2]
[426313717,1782280236000,-150.0,0.00022,2]
[426313707,1782280236000,-450.0,0.00022,2]
[426313718,1782280236000,-278.0,0.00022,2]
[426313842,1782280237000,-32938.23,0.00024174,2]
[426313848,1782280237000,-287.45234914,0.00024348,2]
[426313843,1782280237000,-843.0,0.00024242,5]
[426313844,1782280237000,-249.19,0.000243,14]
[426313840,1782280237000,-681.12826827,0.00024074,2]
[426313845,1782280237000,-608.1,0.00024324,2]
[426313847,1782280237000,-621.78829552,0.00024346,2]
[426313838,1782280237000,-161.10198833,0.00024003,2]
[426313841,1782280237000,-153.24300418,0.00024084,2]
[426313846,1782280237000,-695.39793187,0.00024346,2]
[426313849,1782280237000,-251.11897888,0.00024348,2]